bitfinex/quotes_BTCUSD_20250519
["timestamp","ask_amount","ask_price","bid_price","bid_amount"]
[1747664983873,9.287e-05,103410.0,103400.0,0.4016383]
[1747664984285,9.287e-05,103410.0,103400.0,0.4323383]
[1747664984900,9.287e-05,103410.0,103400.0,0.3043289]
[1747664985843,0.97326794,103420.0,103410.0,0.2324145]
[1747664986055,0.96364697,103420.0,103410.0,0.23845702]
[1747664986291,0.96352697,103420.0,103410.0,0.23845702]
[1747664986464,0.98286492,103420.0,103410.0,0.23845702]
[1747664989530,1.17744516,103420.0,103410.0,0.23441505]
[1747664989946,1.17744516,103420.0,103410.0,0.24408492]
[1747664990126,1.17744516,103420.0,103410.0,0.25012746]
[1747664990639,0.96396516,103420.0,103410.0,0.25012746]
[1747664990887,1.17728516,103420.0,103410.0,0.25012746]
[1747664991946,0.96396516,103420.0,103410.0,0.25012746]
[1747664992157,0.77057897,103420.0,103410.0,0.26279705]
[1747664992298,0.74037897,103420.0,103410.0,0.26279705]
[1747664992521,0.94343437,103420.0,103410.0,0.26279705]
[1747664993114,0.93118762,103420.0,103410.0,0.26279705]
[1747664993325,0.68894092,103420.0,103410.0,0.29449705]
[1747664993526,0.69260938,103420.0,103410.0,0.32519705]
[1747664993732,0.69260938,103420.0,103410.0,0.29449705]
[1747664993935,0.70227794,103420.0,103410.0,0.30122556]
[1747664994135,0.71194659,103420.0,103410.0,0.30122556]
[1747664994344,0.70227794,103420.0,103410.0,0.30122556]
[1747664995214,0.69260938,103420.0,103410.0,0.30122556]
[1747664996088,0.69260938,103420.0,103410.0,0.33232556]
[1747664997216,0.69260938,103420.0,103410.0,0.30122556]
[1747664998332,0.68294092,103420.0,103410.0,0.30122556]
[1747664998536,4.805e-05,103420.0,103410.0,0.30122556]
[1747664998952,4.805e-05,103420.0,103410.0,0.33262556]
[1747664999690,4.805e-05,103420.0,103410.0,0.33571893]
[1747665000325,4.805e-05,103420.0,103410.0,0.33572207]
[1747665000555,4.805e-05,103420.0,103410.0,0.43303053]
[1747665000881,4.805e-05,103420.0,103410.0,0.43302871]
[1747665001194,0.04264805,103440.0,103430.0,0.23237149]
[1747665001420,0.08333402,103440.0,103430.0,0.20351118]
[1747665001622,0.28635026,103440.0,103430.0,0.22284736]
[1747665001827,0.09300127,103440.0,103430.0,0.24218317]
[1747665002085,0.06020052,103440.0,103430.0,0.24822477]
[1747665002290,0.05053346,103440.0,103430.0,0.24822477]
[1747665002445,0.04086659,103440.0,103430.0,0.24822477]
[1747665002664,1.12934282,103450.0,103440.0,0.23234998]
[1747665002879,1.13900923,103450.0,103440.0,0.23234998]
[1747665003075,0.74819651,103450.0,103440.0,0.23234998]
[1747665003322,0.54498255,103450.0,103440.0,0.23234998]
[1747665003534,0.74815642,103450.0,103440.0,0.23234998]
[1747665003676,0.71715642,103450.0,103440.0,0.23839089]
[1747665003900,0.48498473,103450.0,103440.0,0.30039089]
[1747665004140,0.54738473,103480.0,103470.0,0.22262172]
[1747665004340,0.78921507,103480.0,103470.0,0.24195005]
[1747665004546,0.99215283,103480.0,103470.0,0.22262172]
[1747665004764,0.9824896,103480.0,103470.0,0.22262172]
[1747665004967,0.22256304,103480.0,103470.0,0.24194996]
[1747665005210,0.48498473,103500.0,103470.0,0.24194996]
[1747665005362,0.43761265,103530.0,103520.0,0.01]
[1747665005547,6.0022791,103530.0,103520.0,0.01]
[1747665005749,6.0337791,103530.0,103520.0,0.01]
[1747665005959,6.3737791,103530.0,103520.0,0.01]
[1747665006160,0.19319938,103520.0,103510.0,0.01]
[1747665006364,0.54287875,103510.0,103500.0,0.01]
[1747665006617,1.45996782,103510.0,103500.0,0.2033804]
[1747665006793,1.17166962,103510.0,103500.0,0.22270397]
[1747665006993,0.75504996,103510.0,103500.0,0.23236561]
[1747665007197,1.18128996,103510.0,103500.0,0.22270397]
[1747665007403,1.18128996,103510.0,103500.0,0.23236561]
[1747665007599,1.17162962,103510.0,103500.0,0.2033804]
[1747665007808,1.20382962,103510.0,103500.0,0.22270397]
[1747665007982,1.47342867,103510.0,103500.0,0.2033804]
[1747665008193,1.46376805,103510.0,103500.0,0.01014369]
[1747665008402,1.45410734,103510.0,103500.0,0.01014369]
[1747665008600,1.02786734,103510.0,103500.0,0.01114369]
[1747665008802,1.45406734,103510.0,103500.0,0.01114369]
[1747665010414,1.55137674,103510.0,103500.0,0.01114369]
[1747665010621,1.45406734,103510.0,103500.0,0.01114369]
[1747665010822,1.02786734,103510.0,103500.0,0.01114369]
[1747665010978,1.45390734,103510.0,103500.0,0.01114369]
[1747665011179,1.45390734,103510.0,103500.0,0.00114369]
[1747665011180,6.65066534,103510.0,103500.0,0.00114369]
[1747665011384,6.72843213,103510.0,103500.0,0.01114369]
[1747665012047,6.30339213,103510.0,103500.0,0.01114369]
[1747665012354,1.45390734,103510.0,103500.0,0.00114369]
[1747665012487,1.02886734,103510.0,103500.0,0.01014369]
[1747665012837,1.45482734,103510.0,103500.0,0.01014369]
[1747665013215,1.02986734,103510.0,103500.0,0.01014369]
[1747665013427,1.45478734,103510.0,103500.0,0.01014369]
[1747665015690,6.92214439,103510.0,103500.0,0.00014369]
[1747665017261,7.91694439,103510.0,103500.0,0.00014369]
[1747665017645,7.70450439,103510.0,103500.0,0.00014369]
[1747665017858,7.64722534,103510.0,103500.0,0.00014369]
[1747665018065,7.22242534,103510.0,103500.0,0.00014369]
[1747665018269,7.64718534,103510.0,103500.0,0.00014369]
[1747665018474,1.93714734,103510.0,103500.0,0.00014369]
[1747665018681,1.80942734,103510.0,103500.0,0.01014369]
[1747665018888,1.49308744,103510.0,103500.0,0.01014369]
[1747665019094,2.10268649,103510.0,103500.0,0.01014369]
[1747665019883,2.11722734,103510.0,103500.0,0.01014369]
[1747665020085,2.14972734,103510.0,103500.0,0.01014369]
[1747665022015,7.44479474,103510.0,103500.0,0.00014369]
[1747665022671,7.44479474,103510.0,103500.0,0.01014369]
[1747665023313,7.34748534,103510.0,103500.0,0.00585229]
[1747665023721,0.56712111,103490.0,103480.0,0.0101132]
[1747665023929,0.77920111,103490.0,103480.0,0.01025699]
[1747665024805,0.77920111,103490.0,103480.0,0.01225699]
[1747665025021,0.77920111,103490.0,103480.0,0.20553105]
[1747665025220,0.77920111,103490.0,103480.0,0.21519475]
[1747665025462,0.56712111,103490.0,103480.0,0.22485826]
[1747665025854,0.65642495,103490.0,103480.0,0.30808462]
[1747665026257,0.46316957,103490.0,103480.0,0.30808462]
[1747665026460,0.4535069,103490.0,103480.0,0.31008462]
[1747665026671,0.4536069,103490.0,103480.0,0.31008462]
[1747665026874,0.65652504,103490.0,103480.0,0.29616067]
[1747665027077,0.23142422,103490.0,103480.0,0.30582371]
[1747665027287,0.2507491,103490.0,103480.0,0.30582371]
[1747665027403,0.22176202,103490.0,103480.0,0.30582371]
[1747665027618,0.2121,103490.0,103480.0,0.30582371]
[1747665027839,0.22172202,103490.0,103480.0,0.30582371]
[1747665028204,0.23138432,103490.0,103480.0,0.30582371]
[1747665029052,0.22162202,103490.0,103480.0,0.30582371]
[1747665029258,0.23124422,103490.0,103480.0,0.30582371]
[1747665029469,0.00966202,103490.0,103480.0,0.30582371]
[1747665030201,0.64662345,103500.0,103480.0,0.30582371]
[1747665030373,0.98662345,103500.0,103490.0,0.21843255]
[1747665030586,0.57180245,103500.0,103490.0,0.26139466]
[1747665030790,0.793344,103500.0,103490.0,0.26139466]
[1747665031173,0.80300564,103500.0,103490.0,0.26139466]
[1747665031573,0.996243,103500.0,103490.0,0.20977025]
[1747665031813,0.996243,103500.0,103490.0,0.21943264]
[1747665032739,0.996243,103500.0,103490.0,0.22909494]
[1747665034544,1.00982018,103500.0,103490.0,0.21943291]
[1747665034732,1.00015854,103500.0,103490.0,0.00685229]
[1747665035056,1.26009576,103500.0,103490.0,0.20977043]
[1747665035257,1.22719576,103500.0,103490.0,0.20977043]
[1747665035487,0.77402164,103500.0,103490.0,0.21943291]
[1747665035714,0.98658154,103500.0,103490.0,0.23875741]
[1747665035918,0.98166009,103500.0,103490.0,0.23875741]
[1747665036498,0.98166009,103500.0,103490.0,0.2290953]
[1747665036706,0.98166009,103500.0,103490.0,0.2387576]
[1747665036911,0.98166009,103500.0,103490.0,0.24311113]
[1747665037316,0.98166009,103500.0,103490.0,0.25277333]
[1747665037517,0.98166009,103500.0,103490.0,0.27331113]
[1747665037944,0.98142009,103500.0,103490.0,0.27331113]
[1747665038837,0.98142009,103500.0,103490.0,0.24311113]
[1747665039440,0.98142009,103500.0,103490.0,0.25277333]
[1747665039641,0.98142009,103500.0,103490.0,0.28297333]
[1747665040045,0.23176235,103500.0,103490.0,0.28297268]
[1747665040267,0.45298372,103500.0,103490.0,0.31437268]
[1747665040472,0.24142372,103500.0,103490.0,0.31437268]
[1747665040717,0.45298372,103500.0,103490.0,0.31437268]
[1747665040917,0.46264536,103500.0,103490.0,0.31437268]
[1747665041120,0.46264536,103500.0,103490.0,0.26364837]
[1747665041121,0.65588207,103500.0,103490.0,0.26364837]
[1747665041275,0.65588207,103500.0,103490.0,0.2044612]
[1747665041276,0.90615886,103500.0,103490.0,0.2044612]
[1747665041473,0.90615886,103500.0,103490.0,0.22378626]
[1747665041674,0.90615886,103500.0,103490.0,0.22378635]
[1747665041966,0.63655981,103500.0,103490.0,0.23344874]
[1747665042181,0.66825981,103500.0,103490.0,0.21412387]
[1747665042386,0.66825981,103500.0,103490.0,0.21943292]
[1747665042578,0.66825981,103500.0,103490.0,0.2290954]
[1747665042784,0.66825981,103500.0,103490.0,0.21943292]
[1747665042909,1.25853576,103500.0,103490.0,0.20010767]
[1747665043109,1.27307661,103500.0,103490.0,0.00685229]
[1747665043590,1.30487661,103500.0,103490.0,0.00685229]
[1747665043798,1.40218601,103500.0,103490.0,0.001]
[1747665044005,1.67178506,103500.0,103490.0,0.001]
[1747665044157,1.40218601,103500.0,103490.0,0.00685229]
[1747665044379,1.40218601,103500.0,103490.0,0.001]
[1747665044586,1.40218601,103500.0,103490.0,0.00685229]
[1747665044932,1.76909446,103500.0,103490.0,0.00685229]
[1747665045144,1.67178506,103500.0,103490.0,0.00685229]
[1747665045764,6.86954306,103500.0,103490.0,0.00685229]
[1747665045961,6.92755306,103500.0,103490.0,0.001]
[1747665046194,7.02486246,103500.0,103490.0,0.001]
[1747665047186,0.94536786,103490.0,103480.0,0.00014379]
[1747665047382,6.65779526,103490.0,103480.0,0.00599608]
[1747665047800,6.65779526,103490.0,103480.0,0.00014379]
[1747665048016,6.75510466,103490.0,103480.0,0.00014379]
[1747665048216,7.02470371,103490.0,103480.0,0.00014379]
[1747665048637,1.15571946,103470.0,103460.0,0.01020582]
[1747665048840,6.92182686,103470.0,103460.0,0.00449732]
[1747665049485,6.65218781,103470.0,103460.0,0.00449732]
[1747665049711,6.92178686,103470.0,103460.0,0.00449732]
[1747665049912,7.0049368,103470.0,103460.0,0.00014379]
[1747665050124,7.0629468,103470.0,103460.0,0.06217829]
[1747665050574,6.99433771,103470.0,103460.0,0.06217829]
[1747665051173,6.99443771,103470.0,103460.0,0.06217829]
[1747665051831,7.30990659,103470.0,103460.0,0.06217829]
[1747665052280,7.31090659,103470.0,103460.0,0.06217829]
[1747665052480,6.89810659,103470.0,103460.0,0.02929208]
[1747665052705,7.41817599,103470.0,103460.0,0.02929208]
[1747665053380,7.41717599,103470.0,103460.0,0.02929208]
[1747665053598,7.41917599,103470.0,103460.0,0.02929208]
[1747665053826,6.92840599,103470.0,103460.0,0.02929208]
[1747665054036,6.53409659,103470.0,103460.0,0.02929208]
[1747665054242,6.95681659,103470.0,103460.0,0.02929208]
[1747665054662,6.74565659,103470.0,103460.0,0.02929208]
[1747665054881,6.95681659,103470.0,103460.0,0.02929208]
[1747665056193,7.35412599,103470.0,103460.0,0.02929208]
[1747665056604,7.42213599,103470.0,103460.0,0.02929208]
[1747665056817,7.35412599,103470.0,103460.0,0.02929208]
[1747665057037,7.05408599,103470.0,103460.0,0.02929208]
[1747665057459,6.95677659,103470.0,103460.0,0.02929208]
[1747665059459,6.53409659,103470.0,103460.0,0.02929208]
[1747665059681,6.95673659,103470.0,103460.0,0.02929208]
[1747665061356,7.25673659,103470.0,103460.0,0.02929208]
[1747665062228,6.95665659,103470.0,103460.0,0.02929208]
[1747665062640,6.56090659,103470.0,103460.0,0.02929208]
[1747665062851,5.86059754,103470.0,103460.0,0.02929208]
[1747665063063,1.07089066,103470.0,103460.0,0.03514437]
[1747665063500,1.68048971,103470.0,103460.0,0.03514437]
[1747665064297,1.25796971,103470.0,103460.0,0.03514437]
[1747665064469,6.90820771,103470.0,103460.0,0.03514437]
[1747665064675,1.68044971,103470.0,103460.0,0.03514437]
[1747665065054,1.71214971,103470.0,103460.0,0.03514437]
[1747665066481,1.25796971,103470.0,103460.0,0.03514437]
[1747665066674,0.98837066,103470.0,103460.0,0.03514437]
[1747665066881,1.41077066,103470.0,103460.0,0.06694437]
[1747665067125,0.98837066,103470.0,103460.0,0.06694437]
[1747665067264,1.41077066,103470.0,103460.0,0.06694437]
[1747665067697,1.40777066,103470.0,103460.0,0.06694437]
[1747665068111,1.40877066,103470.0,103460.0,0.06694437]
[1747665068440,1.40777066,103470.0,103460.0,0.06694437]
[1747665068772,1.40477066,103470.0,103460.0,0.06694437]
[1747665069158,1.40577066,103470.0,103460.0,0.06694437]
[1747665069375,1.40477066,103470.0,103460.0,0.06694437]
[1747665069581,1.40469066,103470.0,103460.0,0.31278627]
[1747665069807,0.98337066,103470.0,103460.0,0.29345579]
[1747665070011,1.40569066,103470.0,103460.0,0.29345579]
[1747665070334,1.39602649,103470.0,103460.0,0.10014437]
[1747665070461,1.39702649,103470.0,103460.0,0.06694437]
[1747665071098,1.39702649,103470.0,103460.0,0.03514437]
[1747665072154,1.39702649,103470.0,103460.0,0.06764437]
[1747665072580,1.39690649,103470.0,103460.0,0.10084437]
[1747665073390,1.39690649,103470.0,103460.0,0.29415579]
[1747665073593,1.39690649,103470.0,103460.0,0.30382136]
[1747665073839,1.39690649,103470.0,103460.0,0.31348665]
[1747665074050,0.2609,103470.0,103460.0,0.33281675]
[1747665074259,0.0503,103470.0,103460.0,0.33281675]
[1747665074432,0.21266,103470.0,103460.0,0.43012615]
[1747665074774,0.0021,103470.0,103460.0,0.43012615]
[1747665075188,0.0011,103470.0,103460.0,0.43012615]
[1747665075401,0.0011,103470.0,103460.0,0.43447968]
[1747665075603,0.0011,103470.0,103460.0,0.43847968]
[1747665076010,0.0001,103470.0,103460.0,0.43847968]
[1747665076438,0.0001,103470.0,103460.0,0.44247968]
[1747665076818,0.21052,103480.0,103470.0,0.29043781]
[1747665077180,0.22018304,103480.0,103470.0,0.29043781]
[1747665077405,0.21052,103480.0,103470.0,0.29043781]
[1747665078020,0.23950932,103480.0,103470.0,0.29243781]
[1747665078222,0.23950904,103480.0,103470.0,0.29243781]
[1747665078443,0.24917255,103480.0,103470.0,0.29243781]
[1747665078646,0.21052,103480.0,103470.0,0.29243781]
[1747665078858,0.21052,103480.0,103470.0,0.29443781]
[1747665079461,0.22018286,103480.0,103470.0,0.29443781]
[1747665079772,0.21052,103480.0,103470.0,0.29443781]
[1747665081394,0.22018286,103480.0,103470.0,0.29443781]
[1747665081602,0.229846,103480.0,103470.0,0.2628379]
[1747665081804,0.22018286,103480.0,103470.0,0.27250188]
[1747665082000,0.21052,103480.0,103470.0,0.27250188]
[1747665082209,0.22018286,103480.0,103470.0,0.27250188]
[1747665082706,0.2298459,103480.0,103470.0,0.27250188]
[1747665082914,0.40762488,103490.0,103480.0,0.21260098]
[1747665083090,0.82842422,103490.0,103480.0,0.25841631]
[1747665083295,0.82842422,103490.0,103480.0,0.28871631]
[1747665083702,0.46906,103490.0,103480.0,0.28871631]
[1747665083916,0.21056,103490.0,103480.0,0.28871631]
[1747665084159,0.42076,103490.0,103480.0,0.28971631]
[1747665085182,0.42076,103490.0,103480.0,0.29071631]
[1747665085377,0.34976099,103500.0,103490.0,0.29079484]
[1747665085591,0.57924363,103500.0,103490.0,0.29079484]
[1747665085793,1.04208014,103500.0,103490.0,0.20877034]
[1747665085940,1.04208014,103500.0,103490.0,0.21843292]
[1747665086177,1.13460775,103500.0,103490.0,0.00585229]
[1747665086375,1.4674068,103500.0,103490.0,0.00585229]
[1747665086582,1.4684068,103500.0,103490.0,0.00585229]
[1747665086940,1.4694068,103500.0,103490.0,0.00585229]
[1747665087142,1.19980775,103500.0,103490.0,0.00585229]
[1747665087296,1.4694068,103500.0,103490.0,0.00585229]
[1747665087695,1.4694068,103500.0,103470.0,0.20348007]
[1747665087696,0.5526008,103480.0,103470.0,0.20348007]
[1747665087901,1.29095985,103480.0,103470.0,0.21314452]
[1747665088092,1.29095985,103480.0,103470.0,0.01018733]
[1747665088276,1.29095985,103480.0,103470.0,0.22280924]
[1747665088277,1.4028101,103480.0,103470.0,0.22280924]
[1747665089211,1.4028101,103480.0,103470.0,0.2184742]
[1747665089413,1.39314687,103480.0,103470.0,0.2204742]
[1747665089614,1.38348336,103480.0,103470.0,0.2204742]
[1747665090235,1.38348336,103480.0,103470.0,0.2224742]
[1747665090644,1.38348336,103480.0,103470.0,0.00985229]
[1747665090760,1.41378336,103480.0,103470.0,0.20314503]
[1747665090959,1.38348336,103480.0,103470.0,0.20314503]
[1747665091235,1.38348336,103480.0,103470.0,0.21280966]
[1747665093711,1.38332336,103480.0,103470.0,0.2224742]
[1747665093912,1.38332336,103480.0,103470.0,0.23213865]
[1747665094046,1.11372431,103480.0,103470.0,0.23213865]
[1747665094259,1.12338782,103480.0,103470.0,0.241803]
[1747665094457,1.12338782,103480.0,103470.0,0.23213865]
[1747665095895,1.12338782,103480.0,103470.0,0.2224742]
[1747665096983,1.12338782,103480.0,103470.0,0.21280966]
[1747665097120,1.11738782,103480.0,103470.0,0.21280966]
[1747665098428,1.38682687,103480.0,103470.0,0.2224742]
[1747665099032,1.11722782,103480.0,103470.0,0.2224742]
[1747665099894,1.11722782,103480.0,103470.0,0.21280966]
[1747665100414,1.11722782,103480.0,103470.0,0.2224742]
[1747665101645,1.11722782,103480.0,103470.0,0.23213855]
[1747665101846,1.11714782,103480.0,103470.0,0.24180281]
[1747665102054,1.11714782,103480.0,103470.0,0.23213855]
[1747665102231,1.10748431,103480.0,103470.0,0.2224742]
[1747665102881,1.10748431,103480.0,103470.0,0.22851373]
[1747665103590,1.37708336,103480.0,103470.0,0.22851373]
[1747665105009,1.37108336,103480.0,103470.0,0.22851373]
[1747665105204,1.37108336,103480.0,103470.0,0.23817818]
[1747665105398,1.10148431,103480.0,103470.0,0.24784253]
[1747665106172,0.92875376,103480.0,103470.0,0.2575067]
[1747665106382,0.93841699,103480.0,103470.0,0.28900605]
[1747665106589,1.14135475,103480.0,103470.0,0.27934207]
[1747665106797,1.14135475,103480.0,103470.0,0.28900614]
[1747665106973,1.14135475,103480.0,103470.0,0.28900611]
[1747665107410,0.8199045,103480.0,103470.0,0.28900611]
[1747665108211,0.8199045,103480.0,103470.0,0.27934204]
[1747665108495,0.60730295,103480.0,103470.0,0.28900611]
[1747665108722,0.61696609,103480.0,103470.0,0.2890055]
[1747665109502,0.61696609,103480.0,103470.0,0.27934152]
[1747665109643,0.62662941,103480.0,103470.0,0.2890055]
[1747665109844,0.61696609,103480.0,103470.0,0.2890055]
[1747665110060,0.60730295,103480.0,103470.0,0.2890055]
[1747665110276,0.61696609,103480.0,103470.0,0.2890055]
[1747665110483,0.62662941,103480.0,103470.0,0.2890055]
[1747665110684,0.61696609,103480.0,103470.0,0.2890055]
[1747665110888,0.62662941,103480.0,103470.0,0.27934152]
[1747665111236,0.61696609,103480.0,103470.0,0.2890055]
[1747665111433,0.62662941,103480.0,103470.0,0.27934152]
[1747665111637,0.62662941,103480.0,103470.0,0.2890055]
[1747665111969,0.83618941,103480.0,103470.0,0.2890055]
[1747665112576,0.83618941,103480.0,103470.0,0.27934152]
[1747665112767,0.83018941,103480.0,103470.0,0.2890055]
[1747665112964,0.83018941,103480.0,103470.0,0.27934152]
[1747665113259,0.82052609,103480.0,103470.0,0.27934152]
[1747665113478,0.83018941,103480.0,103470.0,0.27934152]
[1747665113891,0.83985283,103480.0,103470.0,0.21884893]
[1747665114105,0.83018941,103480.0,103470.0,0.23817717]
[1747665114414,0.83018941,103480.0,103470.0,0.23817726]
[1747665114611,0.83018941,103480.0,103470.0,0.26817726]
[1747665114911,0.82052609,103480.0,103470.0,0.27784124]
[1747665115533,0.83018941,103480.0,103470.0,0.27784124]
[1747665115838,0.82052609,103480.0,103470.0,0.27784124]
[1747665116044,0.83018941,103480.0,103470.0,0.26817726]
[1747665116648,0.83018941,103480.0,103470.0,0.27784124]
[1747665116894,0.83018932,103480.0,103470.0,0.26817726]
[1747665117053,0.62062932,103480.0,103470.0,0.27784124]
[1747665117945,0.62062932,103480.0,103470.0,0.27492149]
[1747665118113,0.63029264,103480.0,103470.0,0.27492149]
[1747665118665,0.63029264,103480.0,103470.0,0.26817726]
[1747665119069,0.85666773,103480.0,103470.0,0.21884911]
[1747665119292,0.89989262,103480.0,103470.0,0.23817772]
[1747665119508,0.63029357,103480.0,103470.0,0.23817772]
[1747665119719,0.3822,103480.0,103470.0,0.27914179]
[1747665119923,0.62022904,103480.0,103470.0,0.31900577]
[1747665120120,0.61056581,103480.0,103470.0,0.31900577]
[1747665120345,0.62989227,103480.0,103470.0,0.31900577]
[1747665120649,0.25724,103480.0,103470.0,0.31900577]
[1747665120815,0.20904,103480.0,103470.0,0.31900577]
[1747665121246,0.20904,103480.0,103470.0,0.32574951]
[1747665122516,0.20904,103480.0,103470.0,0.33008455]
[1747665122767,0.35932431,103490.0,103480.0,0.22226432]
[1747665122976,0.80106541,103500.0,103490.0,0.20877025]
[1747665123186,0.24352367,103500.0,103490.0,0.25023264]
[1747665123393,0.46210531,103500.0,103490.0,0.25023273]
[1747665123599,0.80210531,103500.0,103490.0,0.19910767]
[1747665123768,0.81176714,103500.0,103490.0,0.20877025]
[1747665124008,0.80210531,103500.0,103490.0,0.20877025]
[1747665124197,0.37396367,103500.0,103490.0,0.20877034]
[1747665124394,0.79240367,103500.0,103490.0,0.21843292]
[1747665124603,0.80206531,103500.0,103490.0,0.2280954]
[1747665124909,0.80206531,103500.0,103490.0,0.21843292]
[1747665125952,0.80306531,103500.0,103490.0,0.21843292]
[1747665126079,0.80406531,103500.0,103490.0,0.21843292]
[1747665126432,0.99730202,103500.0,103490.0,0.19910767]
[1747665126567,1.29790107,103500.0,103490.0,0.20877043]
[1747665127673,1.3075629,103500.0,103490.0,0.19910767]
[1747665127878,1.29790163,103500.0,103490.0,0.19910767]
[1747665128090,1.29790163,103500.0,103490.0,0.2184331]
[1747665128269,1.10466492,103500.0,103490.0,0.2184331]
[1747665128470,0.83506587,103500.0,103490.0,0.2184331]
[1747665129990,1.02830258,103500.0,103490.0,0.19910767]
[1747665130159,1.02830258,103500.0,103490.0,0.20877043]
[1747665130360,0.83506587,103500.0,103490.0,0.22809568]
[1747665130566,0.83506578,103500.0,103490.0,0.22809568]
[1747665130979,0.83506578,103500.0,103490.0,0.2184331]
[1747665131178,0.47076338,103500.0,103490.0,0.2184331]
[1747665131943,0.94326097,103500.0,103490.0,0.19910767]
[1747665132137,1.07097037,103500.0,103490.0,0.19910767]
[1747665132699,0.80137132,103500.0,103490.0,0.19910767]
[1747665132940,0.80137132,103500.0,103490.0,0.20877043]
[1747665133405,0.23088244,103500.0,103490.0,0.2184331]
[1747665133564,0.65200262,103500.0,103490.0,0.22809568]
[1747665134558,0.65200262,103500.0,103490.0,0.2184331]
[1747665134780,0.68430262,103500.0,103490.0,0.2184331]
[1747665135001,0.68430262,103500.0,103490.0,0.22809568]
[1747665135216,0.68430262,103500.0,103490.0,0.2184331]
[1747665135869,0.67464154,103500.0,103490.0,0.2184331]
[1747665136056,0.67464154,103500.0,103490.0,0.22809568]
[1747665136404,0.78649179,103500.0,103490.0,0.19910767]
[1747665136582,0.78649179,103500.0,103490.0,0.20877043]
[1747665136809,0.58359325,103500.0,103490.0,0.20877043]
[1747665136994,0.58359325,103500.0,103490.0,0.21843301]
[1747665136995,0.59325508,103500.0,103490.0,0.21843301]
[1747665137207,0.78649179,103500.0,103490.0,0.2184331]
[1747665137890,0.78649179,103500.0,103490.0,0.19910767]
[1747665138099,1.05609084,103500.0,103490.0,0.2184331]
[1747665138534,0.8531923,103500.0,103490.0,0.22809568]
[1747665138746,0.87251503,103500.0,103490.0,0.22809568]
[1747665138946,0.60291598,103500.0,103490.0,0.22809568]
[1747665139175,0.60291598,103500.0,103490.0,0.2184331]
[1747665139378,0.60291598,103500.0,103490.0,0.22809568]
[1747665139731,0.59325424,103500.0,103490.0,0.22809568]
[1747665140044,0.60291598,103500.0,103490.0,0.2184331]
[1747665140478,0.61257781,103500.0,103490.0,0.20877043]
[1747665140628,0.60291598,103500.0,103490.0,0.22809568]
[1747665141063,0.37503269,103500.0,103490.0,0.23775816]
[1747665141263,0.56067424,103500.0,103490.0,0.24742055]
[1747665141429,0.56067424,103500.0,103490.0,0.23775816]
[1747665141853,0.41984,103500.0,103490.0,0.3121199]
[1747665142049,0.41872,103500.0,103490.0,0.3121199]
[1747665143252,0.42838099,103500.0,103490.0,0.3121199]
[1747665143402,0.21048,103500.0,103490.0,0.3121199]
[1747665143609,0.41868,103500.0,103490.0,0.3121199]
[1747665145097,0.21048,103500.0,103490.0,0.3121199]
[1747665145300,0.002,103500.0,103490.0,0.3121199]
[1747665145682,0.002,103500.0,103490.0,0.6521199]
[1747665145830,0.002,103500.0,103490.0,0.7494293]
[1747665146038,0.21012,103500.0,103490.0,0.7494293]
[1747665146820,0.20912,103500.0,103490.0,0.7494293]
[1747665147033,0.20912,103500.0,103490.0,0.75476434]
[1747665147864,0.20812,103500.0,103490.0,0.75476434]
[1747665148354,0.20812,103500.0,103490.0,0.75576434]
[1747665148945,0.20812,103500.0,103490.0,0.7514293]
[1747665149216,0.20858,103510.0,103500.0,0.29037338]
[1747665149465,0.41658,103510.0,103500.0,0.29037338]
[1747665150438,0.41658,103510.0,103500.0,0.73202379]
[1747665150439,0.00114813,103510.0,103500.0,0.73202379]
[1747665151124,0.00014813,103510.0,103500.0,0.73402379]
[1747665151538,0.00014813,103510.0,103500.0,0.73202379]
[1747665151756,0.00014813,103510.0,103500.0,0.73502379]
[1747665151962,0.00014813,103510.0,103500.0,0.73702379]
[1747665152388,0.00014813,103510.0,103500.0,0.67452379]
[1747665152771,0.00014813,103510.0,103500.0,0.70350817]
[1747665153179,0.20206813,103530.0,103520.0,0.56217815]
[1747665153387,0.20206813,103530.0,103520.0,0.62477815]
[1747665153388,0.2021162,103530.0,103520.0,0.62477815]
[1747665154211,0.21177448,103530.0,103520.0,0.28477815]
[1747665154399,0.27305064,103530.0,103520.0,0.22217815]
[1747665154567,0.25373286,103530.0,103520.0,0.22217815]
[1747665154766,0.46623118,103530.0,103520.0,0.20285925]
[1747665154968,0.26339152,103530.0,103520.0,0.22217815]
[1747665155695,0.27305036,103530.0,103520.0,0.22217815]
[1747665155960,0.26339152,103530.0,103520.0,0.22217815]
[1747665156608,0.27305036,103530.0,103520.0,0.22217815]
[1747665156814,0.26339152,103530.0,103520.0,0.22217815]
[1747665158415,0.49793118,103530.0,103520.0,0.20285925]
[1747665158591,0.49793118,103530.0,103520.0,0.22217853]
[1747665158743,0.49793108,103530.0,103520.0,0.22217853]
[1747665159931,0.48827289,103530.0,103520.0,0.22217871]
[1747665160212,0.47861442,103530.0,103520.0,0.22217871]
[1747665160411,0.47861442,103530.0,103520.0,0.2318383]
[1747665161677,0.05241908,103520.0,103510.0,0.20286155]
[1747665161908,0.02897821,103520.0,103510.0,0.2221825]
[1747665162110,0.02897774,103520.0,103510.0,0.2221825]
[1747665162361,0.2125461,103530.0,103520.0,0.22217834]
[1747665162565,0.23650375,103530.0,103520.0,0.24149705]
[1747665162825,0.44900244,103530.0,103520.0,0.24149705]
[1747665163139,0.48210244,103530.0,103520.0,0.24149705]
[1747665163566,0.48210244,103530.0,103520.0,0.23183774]
[1747665164230,0.47244416,103530.0,103520.0,0.21251903]
[1747665164430,0.47244416,103530.0,103520.0,0.22217862]
[1747665164592,0.50504416,103530.0,103520.0,0.21251903]
[1747665164794,0.50504416,103530.0,103520.0,0.22217871]
[1747665165569,0.4627856,103530.0,103520.0,0.2318383]
[1747665166671,0.4627856,103530.0,103520.0,0.2414978]
[1747665168377,0.4627856,103530.0,103520.0,0.24149733]
[1747665168582,0.25970547,103530.0,103520.0,0.24149686]
[1747665168711,0.26936441,103530.0,103520.0,0.24149686]
[1747665169344,0.04280635,103530.0,103520.0,0.24149686]
[1747665169532,4.807e-05,103530.0,103520.0,0.30319686]
[1747665169751,0.20724807,103530.0,103520.0,0.30319686]
[1747665170085,0.20724807,103530.0,103520.0,0.30753787]
[1747665170795,0.20724807,103530.0,103520.0,0.31357378]
[1747665170982,4.807e-05,103530.0,103520.0,0.31357378]
[1747665172194,4.807e-05,103530.0,103520.0,0.32030571]
[1747665173407,4.807e-05,103530.0,103520.0,0.41761511]
[1747665177505,0.22622879,103530.0,103520.0,0.21996819]
[1747665177640,0.5045838,103530.0,103520.0,0.22962797]
[1747665177839,0.49492542,103530.0,103520.0,0.21393228]
[1747665178043,0.48526676,103530.0,103520.0,0.20720035]
[1747665178242,0.48526676,103530.0,103520.0,0.22652]
[1747665178457,0.48526676,103530.0,103520.0,0.21686022]
[1747665178663,0.48526676,103530.0,103520.0,0.00434101]
[1747665178863,0.47560782,103530.0,103520.0,0.19754039]
[1747665179246,0.47560782,103530.0,103520.0,0.00434101]
[1747665179728,0.47560782,103530.0,103520.0,0.19754039]
[1747665179940,1.08520687,103530.0,103520.0,0.00434101]